bitfinex-derivatives/quotes_SOLF0:USTF0_20230701
["timestamp","ask_amount","ask_price","bid_price","bid_amount"]
[1688195656864,110.20388802,18.272,18.269,10.05248639]
[1688195659661,110.20388802,18.272,18.268,0.71717428]
[1688195661867,0.83388802,18.272,18.268,0.71717428]
[1688195662269,0.83388802,18.272,18.269,10.05229172]
[1688195662570,0.83388802,18.272,18.268,0.71717428]
[1688195663368,109.37,18.277,18.269,10.05146883]
[1688195664363,0.78567668,18.275,18.269,10.05146883]
[1688195664567,0.78567668,18.275,18.268,0.71717428]
[1688195667366,109.49,18.274,18.268,0.71717428]
[1688195668668,109.26,18.271,18.268,0.71717428]
[1688195668873,110.07132603,18.271,18.268,0.71717428]
[1688195672169,108.94,18.269,18.263,27.22382721]
[1688195672472,108.94,18.269,18.258,108.9]
[1688195672673,108.94,18.269,18.259,10.05528826]
[1688195673169,0.85432044,18.266,18.262,0.83478708]
[1688195678781,109.13,18.274,18.263,119.35404649]
[1688195679076,109.13,18.274,18.264,10.05404649]
[1688195679672,108.94,18.277,18.267,0.80473507]
[1688195679879,108.94,18.277,18.266,108.9]
[1688195680870,0.75901458,18.273,18.27,0.83480116]
[1688195682578,56.2038,18.279,18.27,0.83480116]
[1688195682579,165.1438,18.279,18.27,0.83480116]
[1688195683583,0.85232243,18.276,18.27,0.83480116]
[1688195686788,110.34232243,18.276,18.27,0.83480116]
[1688195690079,0.85232243,18.276,18.27,0.83480116]
[1688195690286,0.85232243,18.276,18.271,109.48]
[1688195690586,108.94,18.282,18.271,109.48]
[1688195690891,125.66243584,18.281,18.271,109.48]
[1688195691397,0.74241557,18.278,18.274,0.86369735]
[1688195700801,0.74241557,18.278,18.274,126.09491185]
[1688195701001,0.74241557,18.278,18.274,98.70369735]
[1688195701401,99.52241557,18.278,18.274,0.86369735]
[1688195701897,98.78,18.277,18.274,0.86369735]
[1688195704794,98.78,18.275,18.274,0.86369735]
[1688195705405,98.78,18.275,18.265,97.84]
[1688195705702,98.78,18.272,18.266,10.05233039]
[1688195705897,109.85,18.274,18.266,10.05233039]
[1688195706201,109.85,18.274,18.267,10.05233039]
[1688195706398,0.7556092,18.272,18.269,0.88484085]
[1688195708503,0.7556092,18.272,18.262,27.38251899]
[1688195708504,109.85,18.27,18.262,27.38251899]
[1688195709003,109.85,18.27,18.258,109.85]
[1688195709199,109.85,18.27,18.259,10.05570253]
[1688195709505,0.78984934,18.266,18.263,0.7975883]
[1688195711905,110.16,18.273,18.263,0.7975883]
[1688195712106,125.6975524,18.272,18.263,0.7975883]
[1688195712909,0.83077661,18.269,18.263,0.7975883]
[1688195715609,109.85,18.282,18.268,109.85]
[1688195715817,125.66566052,18.281,18.271,109.69]
[1688195716503,0.84210223,18.278,18.274,0.83531876]
[1688195716703,125.66566052,18.277,18.274,0.83531876]
[1688195717307,109.85,18.276,18.274,0.83531876]
[1688195717905,0.84210223,18.278,18.274,0.83531876]
[1688195718107,125.67451799,18.277,18.274,0.83531876]
[1688195719416,108.89,18.276,18.274,0.83531876]
[1688195720411,108.89,18.276,18.265,27.55392432]
[1688195720611,108.89,18.276,18.264,109.29]
[1688195721410,108.89,18.276,18.25,198.90345245]
[1688195721411,0.78146889,18.272,18.268,0.80738651]
[1688195721614,109.25,18.27,18.258,109.85]
[1688195721817,109.25,18.27,18.259,10.05570287]
[1688195722811,0.84430406,18.266,18.263,0.75429159]
[1688195729120,0.84430406,18.266,18.258,109.85]
[1688195729321,109.85,18.265,18.259,10.05576633]
[1688195729521,109.85,18.265,18.254,109.85]
[1688195729821,109.85,18.265,18.255,10.05576475]
[1688195730221,0.76600997,18.262,18.258,0.87622808]
[1688195730414,0.76600997,18.262,18.259,10.05576475]
[1688195730618,109.85,18.261,18.258,0.87622808]
[1688195731822,0.76600997,18.262,18.258,0.87622808]
[1688195732022,110.27600997,18.262,18.258,0.87622808]
[1688195735437,109.25,18.259,18.254,27.95929851]
[1688195735629,109.85,18.256,18.244,169.38001107]
[1688195735926,108.89,18.253,18.245,10.06212505]
[1688195736121,108.89,18.253,18.246,10.06212505]
[1688195736325,109.85,18.25,18.248,0.57333216]
[1688195736525,109.85,18.25,18.239,355.032]
[1688195736827,0.88386942,18.246,18.243,0.57408302]
[1688195737026,56.2359,18.255,18.245,109.85]
[1688195737219,56.2359,18.255,18.246,10.0632982]
[1688195738126,0.77042641,18.252,18.249,0.89803016]
[1688195739830,109.85,18.25,18.239,382.33171679]
[1688195740023,109.85,18.25,18.24,10.06369054]
[1688195740729,0.86094329,18.247,18.243,0.52783471]
[1688195740926,0.78542929,18.247,18.243,0.52783471]
[1688195744736,109.85,18.246,18.243,0.52783471]
[1688195745029,109.85,18.246,18.24,10.06369054]
[1688195746928,0.78542929,18.247,18.24,10.06369054]
[1688195747127,0.78542929,18.247,18.24,109.85]
[1688195748232,0.78542929,18.247,18.238,109.29]
[1688195748536,109.25,18.242,18.239,10.06754406]
[1688195748723,110.00550262,18.242,18.232,10.06754406]
[1688195748925,0.81394759,18.239,18.232,10.06754406]
[1688195749531,0.81394759,18.239,18.23,10.06754406]
[1688195749735,109.51,18.237,18.23,10.06754406]
[1688195749937,0.87809604,18.235,18.23,10.06754406]
[1688195751929,0.87809604,18.235,18.23,119.91754406]
[1688195752134,0.87809604,18.235,18.231,10.06754406]
[1688195752734,109.85,18.244,18.233,109.85]
[1688195752937,109.85,18.244,18.234,10.06754406]
[1688195753130,256.0405,18.245,18.23,109.29]
[1688195753132,109.85,18.241,18.23,109.29]
[1688195753437,109.85,18.241,18.231,10.0710682]
[1688195753825,0.8664321,18.238,18.234,0.79278023]
[1688195755838,0.8664321,18.238,18.235,119.91911753]
[1688195756031,0.8664321,18.238,18.236,10.06911753]
[1688195757646,0.8664321,18.238,18.237,10.06911753]
[1688195757942,0.8664321,18.238,18.235,5.14311366]
[1688195758134,109.7564321,18.238,18.234,0.79278023]
[1688195758828,0.8664321,18.238,18.234,0.79278023]
[1688195759038,0.8664321,18.238,18.235,10.06896609]
[1688195760034,0.8664321,18.238,18.236,109.85]
[1688195760238,109.85,18.247,18.237,10.06896609]
[1688195760428,109.51,18.253,18.241,109.69]
[1688195760633,109.25,18.255,18.244,109.85]
[1688195760829,178.267,18.256,18.243,120.03]
[1688195761045,178.267,18.256,18.244,10.06674524]
[1688195761235,0.74907335,18.251,18.248,0.76440062]
[1688195772956,121.1,18.25,18.242,28.00617273]
[1688195773243,121.1,18.25,18.24,46.2076]
[1688195773449,121.1,18.25,18.238,121.1]
[1688195773653,121.1,18.25,18.239,10.06820129]
[1688195774153,0.85601877,18.246,18.243,0.78395693]
[1688195775744,121.1,18.253,18.243,0.78395693]
[1688195776053,121.62,18.257,18.244,130.0970994]
[1688195776350,121.62,18.257,18.244,120.03]
[1688195776652,0.8971712,18.252,18.249,0.84536792]
[1688195792255,120.93,18.266,18.251,119.97]
[1688195792458,177.3952,18.268,18.255,120.51]
[1688195792662,125.79219046,18.267,18.255,120.51]
[1688195793260,0.87359723,18.263,18.259,0.76547587]
[1688195795163,120.67,18.26,18.246,121.1]
[1688195796059,0.77211332,18.255,18.251,0.80237504]
[1688195815674,59.619,18.261,18.251,120.77237504]
[1688195815974,125.80412093,18.26,18.251,120.77237504]
[1688195816171,246.15412093,18.26,18.251,0.80237504]
[1688195816368,125.80412093,18.259,18.251,0.80237504]
[1688195816767,0.78914279,18.257,18.251,0.80237504]
[1688195816974,125.80412093,18.256,18.251,0.80237504]
[1688195851903,235.86412093,18.256,18.245,136.21648317]
[1688195852109,125.80412093,18.255,18.245,136.21648317]
[1688195853007,0.86377273,18.252,18.248,0.8602173]
[1688195853209,125.80412093,18.251,18.248,0.8602173]
[1688195865620,125.80412093,18.251,18.25,109.29]
[1688195865815,59.619,18.261,18.25,109.29]
[1688195866613,109.91,18.262,18.25,109.29]
[1688195866812,110.06,18.265,18.254,110.21261225]
[1688195867017,110.06,18.265,18.254,109.37]
[1688195867921,0.7581032,18.261,18.258,0.89223598]
[1688195877937,58.3644,18.271,18.258,0.89223598]
[1688195878229,58.3644,18.271,18.255,27.55464992]
[1688195878435,110.06,18.269,18.258,109.36]
[1688195879026,0.86884145,18.265,18.262,0.81629881]
[1688195885739,119.43162082,18.264,18.262,0.81629881]
[1688195890442,119.43162082,18.264,18.263,110.06]
[1688195890640,0.86884145,18.265,18.263,110.06]
[1688195890839,0.86884145,18.265,18.264,110.06]
[1688195897655,0.86884145,18.265,18.262,138.44672911]
[1688195897950,0.86884145,18.265,18.262,110.87629881]
[1688195900051,0.86884145,18.265,18.262,0.81629881]
[1688195900660,0.86884145,18.265,18.256,109.36]
[1688195900953,0.86884145,18.265,18.256,136.54872967]
[1688195901556,109.91,18.263,18.256,27.18872967]
[1688195901750,0.8211151,18.261,18.258,0.79071737]
[1688195901953,0.8211151,18.261,18.251,110.06]
[1688195902256,109.73,18.262,18.251,110.06]
[1688195902753,109.73,18.262,18.251,138.00033321]
[1688195903157,0.81830641,18.258,18.255,0.89811338]
[1688195914371,0.81830641,18.258,18.251,27.94033321]
[1688195914567,110.06,18.256,18.245,110.06]
[1688195915469,0.84492016,18.252,18.249,0.87108419]
[1688195916367,0.05420279,18.252,18.251,109.36]
[1688195916774,0.05420279,18.252,18.251,136.75575]
[1688195918162,110.06,18.267,18.251,146.81733687]
[1688195918364,119.42057754,18.266,18.256,110.06]
[1688195919072,0.85976247,18.263,18.259,0.89181959]
[1688195919574,0.85976247,18.263,18.259,110.95181959]
[1688195919778,0.85976247,18.263,18.262,110.06]
[1688195926483,0.85976247,18.263,18.262,137.43925]
[1688195928384,109.91,18.274,18.262,137.43925]
[1688195928589,119.3957919,18.273,18.267,110.06]
[1688195928779,119.3957919,18.272,18.267,110.06]
[1688195928976,109.73,18.278,18.267,110.06]
[1688195929279,119.36931063,18.277,18.267,110.06]
[1688195929477,0.79219247,18.274,18.271,0.83550511]
[1688195929676,119.36931063,18.273,18.271,0.83550511]
[1688195940797,119.36931063,18.273,18.271,27.63426913]
[1688195941095,119.36931063,18.273,18.271,0.83550511]
[1688195943092,119.36931063,18.273,18.262,109.37]
[1688195943298,110.06,18.271,18.26,109.82]
[1688195943688,58.9152,18.279,18.251,110.06]
[1688195943689,440.24,18.273,18.251,110.06]
[1688195943894,110.06,18.263,18.252,10.06073083]
[1688195944301,0.88141188,18.259,18.256,0.77750134]
[1688195950999,0.88141188,18.259,18.257,110.06]
[1688195951206,0.88141188,18.259,18.258,109.36]
[1688195951893,0.88141188,18.259,18.258,136.74525]
[1688195953802,0.88141188,18.259,18.258,109.36]
[1688195963609,0.88141188,18.259,18.258,346.80382194]
[1688195965613,0.88141188,18.259,18.258,336.74525]
[1688195966211,0.88141188,18.259,18.258,346.80354406]
[1688195976322,0.88141188,18.259,18.258,146.80354406]
[1688195977025,0.88141188,18.259,18.258,119.41829406]
[1688195980928,0.88141188,18.259,18.258,108.51829406]
[1688195987623,0.88141188,18.259,18.258,308.51829406]
[1688195987827,0.88141188,18.259,18.258,335.90354406]
[1688195991334,0.88141188,18.259,18.258,135.90354406]
[1688195995429,0.88141188,18.259,18.258,108.51829406]
[1688195997434,0.88141188,18.259,18.258,308.51829406]
[1688196001045,0.88141188,18.259,18.258,108.51829406]
[1688196003041,0.88141188,18.259,18.258,308.51829406]
[1688196009252,73.78159643,18.264,18.258,308.51829406]
[1688196009546,73.78159643,18.264,18.258,298.46]
[1688196010253,0.81906855,18.263,18.258,298.46]
[1688196011751,0.81906855,18.263,18.258,98.46]
[1688196011947,0.81906855,18.263,18.258,98.18]
[1688196014055,0.81906855,18.263,18.259,200.0]
[1688196015053,0.81906855,18.263,18.26,98.18]
[1688196015257,0.81906855,18.263,18.26,99.00419431]
[1688196018555,0.81906855,18.263,18.261,98.46]
[1688196023860,0.81906855,18.263,18.262,98.46]
[1688196024561,0.81906855,18.263,18.262,125.83925]
[1688196041378,56.2555,18.283,18.262,125.83925]
[1688196041679,98.9,18.277,18.269,98.46]
[1688196041880,98.9,18.275,18.268,98.18]
[1688196042079,119.38023128,18.274,18.268,98.18]
[1688196042275,0.86759922,18.273,18.269,0.88194778]
[1688196042481,119.38023128,18.272,18.269,0.88194778]
[1688196045087,119.38023128,18.272,18.269,28.25070778]
[1688196045584,119.38023128,18.272,18.27,27.36726]
[1688196050587,119.38023128,18.272,18.269,0.88194778]
[1688196051181,98.9,18.271,18.264,98.18]
[1688196051389,200.0,18.284,18.26,126.33361577]
[1688196051390,98.9,18.267,18.26,126.33361577]
[1688196051583,98.9,18.267,18.26,98.46]
[1688196052386,0.81438698,18.265,18.262,0.82672091]
[1688196054388,0.81438698,18.265,18.262,99.28672091]
[1688196061288,0.81438698,18.265,18.264,98.46]
[1688196074695,0.81438698,18.265,18.263,98.18]
[1688196079198,0.81438698,18.265,18.262,27.68551489]
[1688196079499,0.81438698,18.265,18.262,1.489e-05]
[1688196079704,98.9,18.263,18.254,98.46]
[1688196079997,98.9,18.26,18.255,10.05864279]
[1688196080195,98.9,18.257,18.255,10.05864279]
[1688196080494,218.33980009,18.256,18.244,98.18]
[1688196080699,98.9,18.251,18.245,10.06338525]
[1688196080999,98.9,18.251,18.248,0.77595996]
[1688196081592,98.9,18.249,18.248,0.77595996]
[1688196081987,98.9,18.249,18.244,27.08585527]
[1688196082198,98.9,18.249,18.245,10.06314835]
[1688196082398,98.9,18.249,18.246,10.06314835]
[1688196082589,98.9,18.249,18.247,10.06314835]
[1688196082794,98.9,18.249,18.242,98.18]
[1688196082995,0.88765226,18.247,18.244,0.75028531]
[1688196083195,0.88765226,18.247,18.245,10.0641341]
[1688196087091,0.88765226,18.247,18.242,27.59242338]
[1688196087291,0.88765226,18.247,18.243,10.06409135]
[1688196087698,0.88765226,18.247,18.244,10.06409135]
[1688196087892,0.88765226,18.247,18.245,10.06409135]
[1688196088090,0.88765226,18.247,18.24,110.12]
[1688196088302,0.88765226,18.247,18.244,0.82291979]
[1688196088602,0.88765226,18.247,18.245,10.06405992]
[1688196090302,0.88765226,18.247,18.24,27.40212057]
[1688196090499,0.88765226,18.247,18.241,10.06491526]
[1688196090704,0.88765226,18.247,18.242,10.06491526]
[1688196090899,0.88765226,18.247,18.243,10.06491526]
[1688196091106,0.88765226,18.247,18.244,10.06491526]
[1688196091307,0.88765226,18.247,18.244,0.3164493]
[1688196094011,0.88765226,18.247,18.24,10.06491975]
[1688196095605,109.84,18.246,18.24,10.06491975]
[1688196095813,110.1,18.242,18.231,109.3]
[1688196096005,0.75716584,18.238,18.232,10.06648528]
[1688196107220,0.75716584,18.238,18.224,59.44903357]
[1688196107221,110.12,18.237,18.226,110.12]
[1688196107423,0.7941014,18.233,18.227,10.07060522]
[1688196109431,109.84,18.249,18.233,440.48]
[1688196109724,110.1,18.252,18.241,110.12]
[1688196110023,100.8352354,18.255,18.244,110.12]
[1688196110229,109.69,18.258,18.247,110.12]
[1688196110431,0.79880467,18.254,18.251,0.79305043]
[1688196110627,0.87277806,18.254,18.251,0.79305043]
[1688196111222,0.87277806,18.254,18.252,110.12]
[1688196111728,110.12,18.263,18.252,110.12]
[1688196112522,57.0186,18.264,18.254,109.98]
[1688196112726,57.0186,18.264,18.258,110.12]
[1688196112926,109.22,18.269,18.258,110.12]
[1688196113228,119.43201141,18.268,18.258,110.12]
[1688196113727,0.79658783,18.265,18.261,0.80033262]
[1688196117426,110.12,18.264,18.261,0.80033262]
[1688196117630,110.12,18.264,18.253,109.98]
[1688196118332,59.1495,18.272,18.256,110.12]
[1688196118333,110.12,18.267,18.256,110.12]
[1688196118517,0.75710511,18.263,18.26,0.75614936]
[1688196140445,0.75710511,18.263,18.255,26.75848309]
[1688196140744,0.75710511,18.263,18.252,120.93]
[1688196140947,120.48,18.264,18.252,120.93]
[1688196141643,0.76441414,18.26,18.256,0.87511738]
[1688196148255,120.17,18.269,18.256,121.80511738]
[1688196148451,119.41892836,18.268,18.256,120.93]
[1688196149263,0.83006943,18.264,18.26,0.89862012]
[1688196165974,586.0,18.301,18.262,120.93]
[1688196165975,120.48,18.274,18.262,120.93]
[1688196166271,119.40383229,18.273,18.262,120.93]
[1688196166873,0.89436238,18.269,18.266,0.77558348]
[1688196171983,59.3529,18.279,18.268,120.93]
[1688196172283,119.37760369,18.278,18.27,120.93]
[1688196172676,119.37760369,18.277,18.27,120.93]
[1688196172880,0.89800566,18.275,18.272,0.75377898]
[1688196173076,119.37760369,18.274,18.272,0.76908067]
[1688196173382,0.87088273,18.275,18.272,0.76908067]
[1688196173882,119.37722003,18.274,18.272,0.76908067]
[1688196178586,99.94925115,18.274,18.273,120.93]
[1688196178883,0.87088273,18.275,18.273,120.93]
[1688196180793,0.87088273,18.275,18.272,0.76908067]
[1688196183284,0.87088273,18.275,18.272,28.3013151]
[1688196183677,0.87088273,18.275,18.272,0.76908067]
[1688196185191,200.0,18.273,18.249,439.08]
[1688196185388,109.77,18.27,18.259,109.51]
[1688196185686,109.73,18.267,18.256,109.19]
[1688196186194,200.88792787,18.263,18.26,0.76734831]
[1688196186499,108.92,18.261,18.248,109.17]
[1688196186986,200.0,18.263,18.246,109.51]
[1688196187185,109.77,18.257,18.246,109.51]
[1688196187389,0.85215246,18.253,18.25,0.81673592]
[1688196187689,0.86330946,18.253,18.25,0.85085093]
[1688196202703,0.86330946,18.253,18.245,27.90281485]
[1688196203101,0.86330946,18.253,18.241,149.53426944]
[1688196203301,120.31,18.254,18.242,10.06453996]
[1688196203900,0.80885711,18.25,18.246,0.75729556]
[1688196217118,121.11,18.249,18.236,120.38]
[1688196217319,121.11,18.249,18.237,10.06701628]
[1688196217714,120.31,18.246,18.237,10.06701628]
[1688196217914,120.31,18.246,18.235,26.95198732]
[1688196218208,0.8079424,18.242,18.239,0.22201521]
[1688196219721,0.8079424,18.242,18.234,10.07093358]
[1688196223732,0.8079424,18.242,18.235,121.11]
[1688196224630,0.8079424,18.242,18.236,10.07058478]
[1688196225232,321.02,18.253,18.24,120.91]
[1688196226134,321.02,18.253,18.245,0.80704103]
[1688196226135,0.83156949,18.248,18.245,0.80704103]
[1688196227429,121.11,18.256,18.245,0.80704103]
[1688196227631,118.52084782,18.255,18.243,120.54]
[1688196227827,121.11,18.256,18.243,120.54]
[1688196228524,0.81619846,18.251,18.248,0.7574507]
[1688196233838,0.81619846,18.251,18.243,27.20133979]
[1688196234234,0.81619846,18.251,18.241,121.11]
[1688196234434,0.81619846,18.251,18.242,10.06674893]
[1688196235137,0.81619846,18.251,18.245,0.85103452]
[1688196235542,121.11,18.25,18.245,0.85103452]
[1688196238748,121.11,18.25,18.238,121.11]
[1688196239747,0.88123539,18.246,18.238,121.11]
[1688196240246,0.88123539,18.246,18.238,148.07907421]
[1688196241043,0.88123539,18.246,18.241,120.54]
[1688196244855,0.88123539,18.246,18.239,121.11]
[1688196245044,0.86888856,18.244,18.239,121.11]
[1688196250649,0.86888856,18.244,18.239,148.62124998]
[1688196250853,0.86888856,18.244,18.24,110.14]
[1688196251861,0.86888856,18.244,18.242,110.14]
[1688196257067,0.86888856,18.244,18.239,110.14]
[1688196259961,0.86888856,18.244,18.235,54.6141]
[1688196260669,109.58,18.242,18.235,54.6141]
[1688196260867,0.78124151,18.24,18.235,54.6141]
[1688196261668,0.78124151,18.24,18.234,27.33761598]
[1688196261867,110.92124151,18.24,18.229,110.14]
[1688196262066,200.0,18.243,18.226,56.6253]
[1688196262067,110.92915063,18.236,18.226,56.6253]
[1688196262271,440.56,18.242,18.218,640.56]
[1688196262272,110.94376514,18.233,18.222,110.14]
[1688196262470,0.75072014,18.229,18.223,10.07489454]
[1688196262669,0.80570786,18.228,18.221,10.07489454]
[1688196262969,0.80570786,18.228,18.222,10.07489454]
[1688196263162,0.80570786,18.228,18.223,10.07489454]
[1688196263363,0.80570786,18.228,18.224,10.07489454]
[1688196263572,0.80570786,18.228,18.22,110.14]
[1688196263759,0.80570786,18.228,18.221,10.07678889]
[1688196265961,0.80570786,18.228,18.22,110.14]
[1688196266171,109.3,18.227,18.218,28.02854638]
[1688196266463,0.81193774,18.224,18.219,10.07763394]
[1688196266657,0.81193774,18.224,18.216,110.14]
[1688196266658,0.81193774,18.224,18.217,10.07763394]
[1688196266861,0.81193774,18.224,18.218,10.07763394]
[1688196267160,0.81193774,18.224,18.219,10.07763394]
[1688196267357,0.81193774,18.224,18.22,10.07763394]
[1688196267558,0.81193774,18.224,18.221,10.07763394]
[1688196267771,0.81193774,18.224,18.216,110.14]
[1688196267970,54.13,18.239,18.221,110.14]
[1688196267971,109.58,18.232,18.221,110.14]
[1688196268762,200.0,18.233,18.218,110.14]
[1688196268763,109.58,18.229,18.218,110.14]
[1688196268959,109.58,18.229,18.219,10.07771871]
[1688196269267,0.84521638,18.225,18.222,0.76419786]
[1688196271672,109.45,18.232,18.222,0.76419786]
[1688196271878,110.14,18.234,18.223,120.21779555]
[1688196272073,110.14,18.234,18.224,10.07779555]
[1688196272771,110.14,18.229,18.224,10.07779555]
[1688196272974,110.14,18.226,18.216,54.43987411]
[1688196273276,110.14,18.226,18.217,10.07889326]
[1688196273976,0.88135729,18.223,18.22,0.86148947]
[1688196280076,0.88135729,18.223,18.22,121.94148947]
[1688196280277,121.48,18.232,18.221,10.07778049]
[1688196280483,121.48,18.235,18.222,120.76]
[1688196280782,121.48,18.235,18.222,177.3417]
[1688196280973,121.48,18.235,18.223,10.07762335]
[1688196281170,0.77627108,18.231,18.223,10.07762335]
[1688196281377,0.77627108,18.231,18.227,0.85665323]
[1688196281879,121.48,18.229,18.227,0.85665323]
[1688196282079,121.48,18.229,18.218,148.02650337]
[1688196283076,0.85496463,18.225,18.222,0.7469969]
[1688196295791,121.48,18.223,18.215,27.79322591]
[1688196295991,121.48,18.223,18.216,10.07976122]
[1688196296195,121.48,18.223,18.217,10.07976122]
[1688196296396,121.48,18.223,18.218,10.07976122]
[1688196296690,0.77831557,18.222,18.219,0.16053925]
[1688196297081,0.77831557,18.222,18.212,10.07962336]
[1688196297582,0.77831557,18.222,18.212,131.15962336]
[1688196297889,0.77831557,18.222,18.213,10.07962336]
[1688196301391,0.77831557,18.222,18.215,120.76]
[1688196301590,0.77831557,18.222,18.216,10.07962336]
[1688196302590,0.77831557,18.222,18.217,10.07962336]
[1688196302797,0.78130256,18.221,18.218,10.07962336]
[1688196302997,0.78130256,18.221,18.211,85.20787598]
[1688196303195,0.78130256,18.221,18.212,10.07954715]
[1688196306102,0.78130256,18.221,18.213,121.48]
[1688196306303,0.78130256,18.221,18.216,120.76]
[1688196306602,0.78130256,18.221,18.217,10.07954715]
[1688196307701,0.78130256,18.221,18.218,10.07954715]
[1688196307901,0.78130256,18.221,18.214,27.45141]
[1688196308104,0.78130256,18.221,18.215,10.07941078]
[1688196308996,0.78130256,18.221,18.216,10.07941078]
[1688196309198,0.78130256,18.221,18.217,10.07941078]
[1688196309406,0.78130256,18.221,18.218,10.07941078]
[1688196309605,0.78130256,18.221,18.213,120.76]
[1688196309795,0.78130256,18.221,18.214,10.07934286]
[1688196311007,0.78130256,18.221,18.216,121.48]
[1688196311200,0.78130256,18.221,18.217,10.07934286]
[1688196311805,485.92,18.234,18.217,10.07934286]
[1688196311806,120.99,18.232,18.219,120.76]
[1688196312006,485.92,18.249,18.222,121.48]
[1688196312007,121.48,18.234,18.222,121.48]
[1688196312209,121.48,18.234,18.223,10.07934286]
[1688196312805,0.79809773,18.23,18.227,0.78009823]
[1688196317707,120.99,18.228,18.227,0.78009823]
[1688196317912,120.99,18.228,18.214,26.91698726]
[1688196318111,120.99,18.225,18.215,10.07959364]
[1688196318503,120.99,18.225,18.216,10.07959364]
[1688196318804,0.87901613,18.222,18.217,10.07959364]
[1688196319011,0.87901613,18.222,18.212,180.4237]
[1688196319210,0.87901613,18.222,18.213,10.07961509]
[1688196328314,121.48,18.22,18.213,10.07961509]
[1688196328618,0.8381771,18.218,18.214,10.07961509]
[1688196328824,0.8381771,18.218,18.211,26.97767598]
[1688196329121,0.8381771,18.218,18.212,10.08105031]
[1688196329321,0.8381771,18.218,18.209,10.08105031]
[1688196329621,120.99,18.213,18.205,24.85702846]
[1688196329921,0.87191482,18.211,18.206,10.08257993]
[1688196330412,0.87191482,18.211,18.207,10.08257993]
[1688196330618,0.79794982,18.211,18.207,10.08257993]
[1688196330917,0.79794982,18.211,18.198,121.08]
[1688196330918,0.76178278,18.207,18.198,121.08]
[1688196331114,0.76178278,18.207,18.199,10.08402968]
[1688196336524,0.76178278,18.207,18.197,10.08402968]
[1688196336714,0.76178278,18.207,18.196,26.97749536]
[1688196336715,0.79192963,18.204,18.198,10.08402968]
[1688196336919,0.79192963,18.204,18.199,10.08402968]
[1688196337120,0.79192963,18.204,18.2,10.08402968]
[1688196337421,0.79192963,18.204,18.195,27.3569713]
[1688196337617,0.79192963,18.204,18.196,10.08690317]
[1688196338022,0.79192963,18.204,18.197,10.08690317]
[1688196338223,121.48,18.201,18.198,10.08690317]
[1688196338424,0.8742407,18.201,18.193,27.18393022]
[1688196338625,0.8742407,18.201,18.194,10.09071823]
[1688196338815,0.8742407,18.201,18.192,10.09071823]
[1688196339123,0.8742407,18.201,18.193,10.09071823]
[1688196339322,0.8742407,18.201,18.194,10.09071823]
[1688196339617,0.8742407,18.201,18.195,10.09071823]
[1688196339814,0.82766029,18.2,18.193,10.09071823]
[1688196340012,0.82766029,18.2,18.194,10.09071823]
[1688196340213,0.82766029,18.2,18.195,10.09071823]
[1688196340514,0.82766029,18.2,18.196,10.09071823]
[1688196340719,0.82766029,18.2,18.197,10.09071823]
[1688196340919,0.82766029,18.2,18.198,10.09071823]
[1688196341122,0.82766029,18.2,18.192,120.76]
[1688196341322,0.82766029,18.2,18.193,10.08942368]
[1688196346633,120.99,18.198,18.193,10.08942368]
[1688196347136,121.48,18.195,18.192,1e-08]
[1688196347425,121.48,18.195,18.183,121.48]
[1688196347426,122.28454752,18.195,18.19,10.09129907]
[1688196347622,0.86753794,18.194,18.184,10.09129907]
[1688196347825,0.86753794,18.194,18.185,10.09129907]
[1688196348023,0.89487422,18.191,18.186,10.09129907]
[1688196348327,0.89487422,18.191,18.187,10.09129907]
[1688196348523,0.89487422,18.191,18.183,148.63191392]
[1688196348524,0.89487422,18.191,18.188,10.09129907]
[1688196348721,0.89487422,18.191,18.189,10.09129907]
[1688196348927,0.89487422,18.191,18.19,10.09129907]
[1688196349116,0.89487422,18.191,18.184,10.09129907]
[1688196354135,121.48,18.201,18.189,121.48]
[1688196354332,121.48,18.201,18.19,10.09129907]
[1688196355031,0.80238476,18.197,18.194,0.87781546]
[1688196359126,55.4186,18.21,18.195,130.85224629]